fUST/lending_fUST_20250504
["ID","MTS","AMOUNT","RATE_DAILY","PERIOD"]
[359849459,1746372632666,-400.0,0.00038904,15]
[359849461,1746372632675,-476.27101545,0.00038904,15]
[359849463,1746372632684,-400.0,0.00038904,15]
[359849465,1746372632693,-400.0,0.00038904,15]
[359849467,1746372632702,-400.0,0.00038904,15]
[359849469,1746372632711,-400.0,0.00038904,15]
[359849471,1746372632720,-444.76,0.00038904,15]
[359849473,1746372632729,-400.0,0.00038904,15]
[359849475,1746372632739,-400.0,0.00038904,15]
[359849477,1746372632748,-400.0,0.00038904,15]
[359849479,1746372632758,-400.0,0.00038904,15]
[359849481,1746372632767,-400.0,0.00038904,15]
[359849483,1746372632776,-400.0,0.00038904,5]
[359849485,1746372632786,-400.0,0.00038904,15]
[359849487,1746372632796,-400.0,0.00038904,5]
[359849489,1746372632805,-239.08,0.00038904,15]
[359849491,1746372632814,-400.0,0.00038904,15]
[359849493,1746372632824,-400.0,0.00038904,15]
[359849495,1746372632833,-500.0,0.00038904,15]
[359849497,1746372632842,-500.0,0.00038904,15]
[359849499,1746372632851,-500.0,0.00038904,15]
[359849501,1746372632861,-500.0,0.00038904,15]
[359849503,1746372632871,-500.0,0.00038904,15]
[359849505,1746372632880,-400.0,0.00038904,15]
[359849507,1746372632889,-400.0,0.00038904,15]
[359849509,1746372632898,-400.0,0.00038904,15]
[359849511,1746372632907,-400.0,0.00038904,15]
[359849513,1746372632917,-400.0,0.00038904,15]
[359849515,1746372632926,-400.0,0.00038904,15]
[359849517,1746372632936,-400.0,0.00038904,15]
[359849519,1746372632945,-400.0,0.00038904,15]
[359849521,1746372632955,-165.32,0.00038904,15]
[359849523,1746372632964,-400.0,0.00038904,15]
[359849524,1746372632973,-400.0,0.00038904,15]
[359849525,1746372632982,-400.0,0.00038904,15]
[359849527,1746372632992,-233.91,0.00038904,15]
[359849529,1746372633001,-400.0,0.00038904,15]
[359849530,1746372633012,-400.0,0.00038904,15]
[359849531,1746372633021,-190.07,0.00038904,15]
[359849532,1746372633030,-400.0,0.00038904,15]
[359849533,1746372633041,-400.0,0.00038904,15]
[359849534,1746372633052,-400.0,0.00038904,15]
[359849535,1746372633061,-400.0,0.00038904,15]
[359849536,1746372633070,-400.0,0.00038904,15]
[359849537,1746372633079,-400.0,0.00038904,15]
[359849538,1746372633090,-400.0,0.00038904,15]
[359849539,1746372633100,-544.03,0.00038904,15]
[359849540,1746372633109,-151.0,0.00038904,15]
[359849541,1746372633118,-151.0,0.00038904,15]
[359849542,1746372633128,-170.77597421,0.00038904,15]
[359849543,1746372633137,-151.0,0.00038904,15]
[359849544,1746372633146,-151.0,0.00038904,15]
[359849545,1746372633155,-400.0,0.00038904,15]
[359849546,1746372633165,-151.0,0.00038904,15]
[359849547,1746372633174,-151.0,0.00038904,15]
[359849548,1746372633183,-151.0,0.00038904,15]
[359849549,1746372633193,-400.0,0.00038904,15]
[359849550,1746372633202,-400.0,0.00038904,15]
[359849551,1746372633211,-224.02418334,0.00038904,15]
[359849552,1746372633220,-400.0,0.00038904,15]
[359849553,1746372633229,-400.0,0.00038904,15]
[359849554,1746372633238,-400.0,0.00038904,15]
[359849555,1746372633247,-378.23,0.00038904,15]
[359849556,1746372633256,-500.0,0.00038904,15]
[359849557,1746372633265,-400.0,0.00038904,15]
[359849558,1746372633274,-400.0,0.00038904,15]
[359849559,1746372633284,-400.0,0.00038904,15]
[359849560,1746372633293,-400.0,0.00038904,15]
[359849561,1746372633303,-400.0,0.00038904,15]
[359849562,1746372633313,-400.0,0.00038904,15]
[359849563,1746372633324,-507.72,0.00038904,15]
[359849564,1746372633333,-400.0,0.00038904,15]
[359849565,1746372633342,-400.0,0.00038904,15]
[359849566,1746372633351,-151.0,0.00038904,15]
[359849567,1746372633361,-151.0,0.00038904,15]
[359849568,1746372633370,-151.0,0.00038904,15]
[359849569,1746372633380,-278.77871383,0.00038904,15]
[359849570,1746372633390,-151.0,0.00038904,15]
[359849571,1746372633399,-151.0,0.00038904,15]
[359849572,1746372633410,-161.55437859,0.00038904,15]
[359849573,1746372633419,-400.0,0.00038904,15]
[359849574,1746372633428,-400.0,0.00038904,15]
[359849575,1746372633438,-400.0,0.00038904,15]
[359849576,1746372633448,-400.0,0.00038904,15]
[359849577,1746372633457,-400.0,0.00038904,15]
[359849578,1746372633466,-284.4,0.00038904,15]
[359849579,1746372633476,-400.0,0.00038904,15]
[359849580,1746372633486,-400.0,0.00038904,15]
[359849581,1746372633495,-400.0,0.00038904,15]
[359849582,1746372633505,-400.0,0.00038904,15]
[359849583,1746372633515,-400.0,0.00038904,15]
[359849584,1746372633524,-400.0,0.00038904,15]
[359849585,1746372633533,-400.0,0.00038904,15]
[359849586,1746372633543,-453.22400025,0.00038904,15]
[359849587,1746372633553,-400.0,0.00038904,15]
[359849588,1746372633562,-400.0,0.00038904,15]
[359849589,1746372633572,-400.0,0.00038904,15]
[359849590,1746372633581,-400.0,0.00038904,15]
[359849591,1746372633591,-400.0,0.00038904,15]
[359849592,1746372633600,-400.0,0.00038904,15]
[359849593,1746372633610,-400.0,0.00038904,15]
[359849594,1746372633620,-400.0,0.00038904,15]
[359849595,1746372633630,-491.24128488,0.00038904,15]
[359849596,1746372633640,-400.0,0.00038904,15]
[359849597,1746372633650,-400.0,0.00038904,15]
[359849598,1746372633659,-400.0,0.00038904,15]
[359849599,1746372633669,-400.0,0.00038904,15]
[359849600,1746372633679,-400.0,0.00038904,15]
[359849601,1746372633688,-400.0,0.00038904,15]
[359849602,1746372633698,-400.0,0.00038904,15]
[359849603,1746372633707,-400.0,0.00038904,15]
[359849604,1746372633717,-400.0,0.00038904,15]
[359849605,1746372633726,-400.0,0.00038904,15]
[359849606,1746372633735,-400.0,0.00038904,15]
[359849607,1746372633745,-400.0,0.00038904,15]
[359849608,1746372633756,-400.0,0.00038904,15]
[359849609,1746372633765,-400.0,0.00038904,15]
[359849610,1746372633775,-400.0,0.00038904,15]
[359849611,1746372633785,-400.0,0.00038904,15]
[359849612,1746372633795,-400.0,0.00038904,15]
[359849613,1746372633804,-400.0,0.00038904,15]
[359849614,1746372633814,-400.0,0.00038904,15]
[359849615,1746372633824,-499.59,0.00038904,15]
[359849616,1746372633834,-400.0,0.00038904,15]
[359849617,1746372633843,-400.0,0.00038904,15]
[359849618,1746372633853,-400.0,0.00038904,15]
[359849619,1746372633863,-400.0,0.00038904,15]
[359849620,1746372633872,-400.0,0.00038904,15]
[359849621,1746372633882,-400.0,0.00038904,15]
[359849622,1746372633891,-400.0,0.00038904,15]
[359849623,1746372633900,-400.0,0.00038904,15]
[359849624,1746372633910,-400.0,0.00038904,15]
[359849625,1746372633919,-400.0,0.00038904,15]
[359849626,1746372633929,-400.0,0.00038904,15]
[359849627,1746372633939,-400.0,0.00038904,15]
[359849628,1746372633949,-400.0,0.00038904,15]
[359849629,1746372633958,-400.0,0.00038904,15]
[359849630,1746372633968,-400.0,0.00038904,15]
[359849631,1746372633977,-400.0,0.00038904,15]
[359849632,1746372633986,-345.65422355,0.00038904,15]
[359849687,1746372638444,-67.90216426,0.00027397,2]
[359849688,1746372638455,-220.27768674,0.00027397,2]
[359849689,1746372638464,-288.179851,0.00033165,2]
[359849691,1746372638473,-500.0,0.00035204,7]
[359849693,1746372638483,-284.87940084,0.00035204,7]
[359849695,1746372638493,-54.34577645,0.00038904,15]
[359849697,1746372638502,-400.0,0.00038904,15]
[359849699,1746372638511,-380.99,0.00038904,15]
[359849701,1746372638521,-400.0,0.00038904,15]
[359849702,1746372638530,-400.0,0.00038904,15]
[359849703,1746372638539,-400.0,0.00038904,15]
[359849704,1746372638548,-327.19120922,0.00038904,15]
[359849787,1746372640868,-121.92290533,0.00038904,15]
[359850357,1746372646384,-387.02795814,0.00038904,15]
[359851662,1746372772770,-308.42284833,0.00027,3]
[359851664,1746372777635,-5.31631586,0.00027,3]
[359851665,1746372777657,-213.05006406,0.00027,3]
[359851684,1746373555135,-100.68910013,0.00027,3]
[359851685,1746373555157,-212.23653938,0.00027,3]
[359851686,1746373555181,-250.0,0.00035465,2]
[359851687,1746373555201,-218.36637992,0.00036385,2]
[359851688,1746373555221,-170.07194549,0.00036485,2]
[359851689,1746373635089,-1291.92887291,0.00036485,2]
[359851690,1746373635110,-652.85635591,0.00036804,2]
[359851691,1746373635131,-1600.0,0.00037357,3]
[359851692,1746373635150,-300.0,0.00037921,2]
[359851693,1746373635169,-1223.9698904,0.00037922,4]
[359851694,1746373635190,-788.1882,0.00038,120]
[359851695,1746373635209,-373.350577,0.00038082,30]
[359851696,1746373635241,-476.0977112,0.00038499,15]
[359851697,1746373635261,-1328.11640602,0.000385,30]
[359851699,1746373639144,-18654.7768461,0.000385,30]
[359851752,1746373832584,-259.361865,0.00027397,2]
[359851754,1746373832594,-259.361865,0.00033165,2]
[359851756,1746373832603,-871.5,0.00034621,30]
[359851758,1746373832613,-485.2375706,0.000364,2]
[359851760,1746373832622,-511.0,0.00037921,3]
[359851762,1746373832632,-979.1759123,0.00037922,4]
[359851764,1746373832642,-200.0,0.00038,30]
[359851766,1746373832652,-200.0,0.000382,30]
[359851768,1746373832662,-150.0,0.000384,2]
[359851771,1746373832678,-235.0,0.00038499,5]
[359851774,1746373832691,-20017.10674788,0.000385,30]
[359851776,1746373832704,-200.0,0.000385,30]
[359851778,1746373832717,-155.91146257,0.00038601,2]
[359851780,1746373832730,-160.0,0.00038762,2]
[359851783,1746373832743,-601.85663553,0.00038762,2]
[359851785,1746373832753,-200.0,0.000388,30]
[359851787,1746373832764,-240.80821142,0.000388,2]
[359851789,1746373832775,-156.36324517,0.00038804,2]
[359851791,1746373832788,-2598.00453681,0.00038804,2]
[359851794,1746373832800,-3248.08286825,0.00038894,3]
[359851796,1746373832810,-150.0,0.000389,2]
[359851798,1746373832823,-231.93607497,0.00038903,15]
[359851800,1746373832834,-999.0,0.00038903,120]
[359851803,1746373832847,-1015.70728695,0.00038904,2]
[359851805,1746373832859,-2800.59453794,0.00038904,3]
[359851807,1746373832875,-151.0,0.00038904,2]
[359851810,1746373832887,-500.0,0.00038904,15]
[359851812,1746373832898,-500.0,0.00038904,15]
[359851814,1746373832910,-500.0,0.00038904,15]
[359851816,1746373832922,-500.0,0.00038904,15]
[359851819,1746373832934,-400.0,0.00038904,15]
[359851821,1746373832945,-500.0,0.00038904,15]
[359851823,1746373832959,-500.0,0.00038904,15]
[359851825,1746373832970,-500.0,0.00038904,15]
[359851827,1746373832981,-500.0,0.00038904,15]
[359851829,1746373832993,-500.0,0.00038904,15]
[359851832,1746373833004,-500.0,0.00038904,15]
[359851834,1746373833016,-500.0,0.00038904,15]
[359851836,1746373833030,-500.0,0.00038904,15]
[359851838,1746373833043,-400.0,0.00038904,15]
[359851841,1746373833059,-400.0,0.00038904,15]
[359851843,1746373833071,-400.0,0.00038904,15]
[359851845,1746373833084,-468.31,0.00038904,15]
[359851848,1746373833097,-400.0,0.00038904,15]
[359851850,1746373833109,-500.0,0.00038904,15]
[359851852,1746373833120,-400.0,0.00038904,15]
[359851854,1746373833132,-400.0,0.00038904,15]
[359851856,1746373833143,-394.55,0.00038904,15]
[359851858,1746373833154,-500.0,0.00038904,15]
[359851860,1746373833165,-400.0,0.00038904,15]
[359851863,1746373833175,-400.0,0.00038904,15]
[359851865,1746373833187,-400.0,0.00038904,15]
[359851867,1746373833198,-400.0,0.00038904,15]
[359851869,1746373833209,-400.0,0.00038904,15]
[359851871,1746373833221,-400.0,0.00038904,15]
[359851873,1746373833232,-242.23163187,0.00038904,15]
[359851876,1746373833244,-494.99614246,0.00038904,15]
[359851878,1746373833254,-400.0,0.00038904,15]
[359851880,1746373833266,-400.0,0.00038904,15]
[359851882,1746373833277,-500.0,0.00038904,15]
[359851884,1746373833289,-205.1088879,0.00038904,15]
[359851887,1746373833301,-400.0,0.00038904,15]
[359851889,1746373833313,-400.0,0.00038904,15]
[359851891,1746373833324,-400.0,0.00038904,15]
[359851893,1746373833336,-400.0,0.00038904,15]
[359851896,1746373833347,-400.0,0.00038904,15]
[359851898,1746373833359,-400.0,0.00038904,15]
[359851899,1746373833370,-400.0,0.00038904,15]
[359851900,1746373833380,-489.53,0.00038904,15]
[359851901,1746373833390,-250.04965159,0.00038904,15]
[359851902,1746373833401,-500.77650852,0.00038904,15]
[359851903,1746373833411,-400.0,0.00038904,15]
[359851904,1746373833422,-168.13950214,0.00038904,15]
[359851905,1746373833434,-400.0,0.00038904,15]
[359851906,1746373833445,-400.0,0.00038904,15]
[359851907,1746373833456,-400.0,0.00038904,15]
[359851908,1746373833467,-267.46157343,0.00038904,15]
[359851909,1746373833479,-400.0,0.00038904,15]
[359851910,1746373833492,-400.0,0.00038904,15]
[359851911,1746373833504,-151.0,0.00038904,15]
[359851912,1746373833516,-151.0,0.00038904,15]
[359851913,1746373833528,-151.0,0.00038904,15]
[359851914,1746373833538,-151.0,0.00038904,15]
[359851915,1746373833549,-151.0,0.00038904,15]
[359851916,1746373833559,-500.0,0.00038904,15]
[359851917,1746373833571,-400.0,0.00038904,15]
[359851918,1746373833582,-500.0,0.00038904,15]
[359851920,1746373833595,-500.0,0.00038904,15]
[359851922,1746373833606,-500.69524824,0.00038904,15]
[359851923,1746373833616,-500.0,0.00038904,15]
[359851924,1746373833627,-400.0,0.00038904,15]
[359851925,1746373833637,-400.0,0.00038904,15]
[359851926,1746373833648,-530.79,0.00038904,15]
[359851927,1746373833658,-500.0,0.00038904,15]
[359851928,1746373833668,-513.54,0.00038904,15]
[359851929,1746373833679,-500.0,0.00038904,15]
[359851930,1746373833690,-500.0,0.00038904,15]
[359851931,1746373833702,-500.0,0.00038904,15]
[359851932,1746373833712,-501.40972087,0.00038904,15]
[359851933,1746373833723,-400.0,0.00038904,15]
[359851934,1746373833734,-507.13101537,0.00038904,15]
[359851935,1746373833748,-500.0,0.00038904,15]
[359851936,1746373833759,-500.0,0.00038904,15]
[359851937,1746373833770,-500.0,0.00038904,15]
[359851938,1746373833781,-500.0,0.00038904,15]
[359851939,1746373833792,-400.0,0.00038904,15]
[359851940,1746373833802,-500.0,0.00038904,15]
[359851941,1746373833813,-504.30776664,0.00038904,15]
[359851942,1746373833824,-500.0,0.00038904,15]
[359851943,1746373833834,-400.0,0.00038904,2]
[359851944,1746373833846,-400.0,0.00038904,2]
[359851945,1746373833857,-400.0,0.00038904,2]
[359851946,1746373833868,-400.0,0.00038904,2]
[359851947,1746373833879,-400.0,0.00038904,2]
[359851948,1746373833889,-221.75,0.00038904,2]
[359851949,1746373833902,-400.0,0.00038904,15]
[359851950,1746373833913,-400.0,0.00038904,15]
[359851951,1746373833925,-400.0,0.00038904,15]
[359851952,1746373833936,-400.0,0.00038904,15]
[359851953,1746373833947,-400.0,0.00038904,15]
[359851954,1746373833958,-400.0,0.00038904,15]
[359851955,1746373833969,-500.0,0.00038904,15]
[359851956,1746373833980,-500.0,0.00038904,15]
[359851957,1746373833991,-500.0,0.00038904,15]
[359851958,1746373834001,-400.0,0.00038904,2]
[359851959,1746373834012,-400.0,0.00038904,2]
[359851960,1746373834022,-400.0,0.00038904,2]
[359851961,1746373834034,-400.0,0.00038904,15]
[359851962,1746373834045,-400.0,0.00038904,15]
[359851963,1746373834055,-400.0,0.00038904,15]
[359851964,1746373834067,-277.5,0.00038904,15]
[359851965,1746373834078,-488.61,0.00038904,15]
[359851966,1746373834089,-400.0,0.00038904,15]
[359851967,1746373834100,-529.6,0.00038904,15]
[359851968,1746373834111,-500.0,0.00038904,15]
[359851969,1746373834269,-500.0,0.00038904,15]
[359851970,1746373834280,-485.75,0.00038904,15]
[359851971,1746373834289,-400.0,0.00038904,15]
[359851972,1746373834299,-400.0,0.00038904,15]
[359851973,1746373834323,-400.0,0.00038904,15]
[359851974,1746373834333,-400.0,0.00038904,15]
[359851975,1746373834343,-400.0,0.00038904,15]
[359851976,1746373834353,-298.33,0.00038904,15]
[359851977,1746373834364,-359.14931182,0.00038904,15]
[359851978,1746373834375,-400.0,0.00038904,15]
[359851979,1746373834386,-400.0,0.00038904,15]
[359851980,1746373834396,-263.76,0.00038904,15]
[359851981,1746373834408,-400.0,0.00038904,15]
[359851982,1746373834419,-400.0,0.00038904,15]
[359851983,1746373834430,-484.61,0.00038904,15]
[359851984,1746373834440,-220.48,0.00038904,15]
[359851985,1746373834449,-400.0,0.00038904,15]
[359851986,1746373834458,-196.97,0.00038904,15]
[359851987,1746373834467,-400.0,0.00038904,15]
[359851988,1746373834477,-422.46,0.00038904,15]
[359851989,1746373834486,-400.0,0.00038904,15]
[359851990,1746373834495,-400.0,0.00038904,15]
[359851991,1746373834504,-169.34,0.00038904,15]
[359851992,1746373834513,-400.0,0.00038904,15]
[359851993,1746373834523,-157.7,0.00038904,15]
[359851994,1746373834533,-400.0,0.00038904,15]
[359851995,1746373834543,-500.0,0.00038904,15]
[359851996,1746373834552,-403.58909244,0.00038904,15]
[359851997,1746373834562,-400.0,0.00038904,15]
[359851998,1746373834571,-400.0,0.00038904,15]
[359851999,1746373834580,-420.23,0.00038904,15]
[359852000,1746373834590,-400.0,0.00038904,15]
[359852001,1746373834599,-400.0,0.00038904,15]
[359852002,1746373834609,-507.1,0.00038904,15]
[359852003,1746373834618,-500.0,0.00038904,14]
[359852004,1746373834627,-400.0,0.00038904,15]
[359852005,1746373834637,-413.46,0.00038904,15]
[359852006,1746373834646,-352.03013359,0.00038904,15]
[359852007,1746373834665,-47.96986641,0.00038904,15]
[359852008,1746373834674,-400.0,0.00038904,15]
[359852009,1746373834684,-3.82536124,0.00038904,15]
[359852010,1746373834695,-396.17463876,0.00038904,15]
[359852011,1746373834704,-44.13610523,0.00038904,15]
[359852067,1746373838584,-355.86389477,0.00038904,15]
[359852069,1746373838594,-224.65054284,0.00038904,15]
[359852071,1746373838606,-260.85945716,0.00038904,15]
[359852073,1746373838615,-404.18926346,0.00038904,15]
[359852075,1746373838628,-390.0,0.00038904,15]
[359852077,1746373838637,-34.82866961,0.00038904,15]
[359852080,1746373838649,-365.17133039,0.00038904,15]
[359852082,1746373838659,-400.0,0.00038904,15]
[359852084,1746373838669,-400.0,0.00038904,15]
[359852086,1746373838678,-361.53,0.00038904,15]
[359852088,1746373838687,-400.0,0.00038904,15]
[359852089,1746373838697,-400.0,0.00038904,15]
[359852091,1746373838706,-153.36164998,0.00038904,15]
[359852093,1746373838716,-400.0,0.00038904,15]
[359852095,1746373838725,-400.0,0.00038904,15]
[359852096,1746373838735,-400.0,0.00038904,15]
[359852098,1746373838744,-400.0,0.00038904,15]
[359852101,1746373838755,-400.0,0.00038904,15]
[359852103,1746373838764,-400.0,0.00038904,15]
[359852105,1746373838774,-471.16,0.00038904,15]
[359852107,1746373838783,-400.0,0.00038904,15]
[359852109,1746373838792,-350.61,0.00038904,15]
[359852111,1746373838802,-400.0,0.00038904,15]
[359852113,1746373838811,-531.34,0.00038904,15]
[359852115,1746373838820,-498.49,0.00038904,15]
[359852117,1746373838830,-400.0,0.00038904,15]
[359852118,1746373838840,-400.0,0.00038904,15]
[359852120,1746373838849,-151.0,0.00038904,14]
[359852122,1746373838859,-151.0,0.00038904,14]
[359852125,1746373838868,-151.0,0.00038904,14]
[359852127,1746373838877,-167.340547,0.00038904,14]
[359852129,1746373838887,-400.0,0.00038904,15]
[359852131,1746373838897,-400.0,0.00038904,15]
[359852133,1746373838906,-400.0,0.00038904,15]
[359852135,1746373838916,-400.0,0.00038904,15]
[359852137,1746373838926,-361.39,0.00038904,15]
[359852139,1746373838936,-400.0,0.00038904,15]
[359852141,1746373838945,-181.0433346,0.00038904,15]
[359852142,1746373838954,-428.76,0.00038904,15]
[359852145,1746373838964,-400.0,0.00038904,15]
[359852147,1746373838973,-400.0,0.00038904,15]
[359852149,1746373838983,-151.0,0.00038904,15]
[359852151,1746373838993,-500.0,0.00038904,15]
[359852153,1746373839002,-151.0,0.00038904,15]
[359852155,1746373839012,-198.0,0.00038904,15]
[359852157,1746373839021,-400.0,0.00038904,15]
[359852159,1746373839031,-500.0,0.00038904,15]
[359852161,1746373839040,-151.0,0.00038904,15]
[359852163,1746373839049,-400.0,0.00038904,15]
[359852165,1746373839064,-510.91676991,0.00038904,15]
[359852167,1746373839073,-400.0,0.00038904,15]
[359852169,1746373839083,-400.0,0.00038904,15]
[359852171,1746373839093,-500.0,0.00038904,15]
[359852173,1746373839102,-500.0,0.00038904,15]
[359852175,1746373839112,-500.0,0.00038904,15]
[359852177,1746373839121,-400.0,0.00038904,15]
[359852179,1746373839131,-393.75711286,0.00038904,15]
[359852181,1746373839141,-400.0,0.00038904,15]
[359852183,1746373839150,-400.0,0.00038904,15]
[359852185,1746373839160,-400.0,0.00038904,15]
[359852187,1746373839170,-400.0,0.00038904,15]
[359852189,1746373839179,-206.11060824,0.00038904,15]
[359852192,1746373839194,-293.88939176,0.00038904,15]
[359852194,1746373839203,-505.46,0.00038904,15]
[359852196,1746373839212,-400.0,0.00038904,15]
[359852198,1746373839222,-400.0,0.00038904,15]
[359852200,1746373839232,-400.0,0.00038904,15]
[359852202,1746373839241,-400.0,0.00038904,15]
[359852204,1746373839251,-238.64824269,0.00038904,15]
[359852206,1746373839263,-161.35175731,0.00038904,15]
[359852208,1746373839272,-501.36743639,0.00038904,15]
[359852210,1746373839282,-475.98,0.00038904,15]
[359852212,1746373839292,-400.0,0.00038904,15]
[359852214,1746373839301,-400.0,0.00038904,15]
[359852216,1746373839310,-308.56,0.00038904,15]
[359852218,1746373839319,-414.93517203,0.00038904,15]
[359852220,1746373839328,-200.0,0.00038904,15]
[359852222,1746373839338,-203.33318444,0.00038904,15]
[359852224,1746373839348,-400.0,0.00038904,15]
[359852226,1746373839357,-500.0,0.00038904,15]
[359852228,1746373839367,-423.18,0.00038904,15]
[359852230,1746373839376,-293.00328693,0.00038904,15]
[359852232,1746373839386,-400.0,0.00038904,15]
[359852234,1746373839395,-400.0,0.00038904,15]
[359852236,1746373839404,-468.07,0.00038904,15]
[359852238,1746373839414,-200.0,0.00038904,15]
[359852240,1746373839424,-151.0,0.00038904,14]
[359852242,1746373839433,-400.0,0.00038904,15]
[359852244,1746373839443,-205.67944032,0.00038904,15]
[359852246,1746373839452,-400.0,0.00038904,15]
[359852248,1746373839462,-400.0,0.00038904,15]
[359852250,1746373839471,-293.64,0.00038904,15]
[359852252,1746373839480,-400.0,0.00038904,15]
[359852254,1746373839491,-400.0,0.00038904,15]
[359852256,1746373839500,-400.0,0.00038904,15]
[359852257,1746373839510,-400.0,0.00038904,15]
[359852258,1746373839519,-400.0,0.00038904,15]
[359852259,1746373839529,-400.0,0.00038904,15]
[359852260,1746373839539,-342.0,0.00038904,15]
[359852261,1746373839548,-1000.0,0.00038904,15]
[359852262,1746373839558,-463.83946189,0.00038904,15]
[359852263,1746373839567,-400.0,0.00038904,15]
[359852264,1746373839576,-512.55641467,0.00038904,15]
[359852265,1746373839585,-400.0,0.00038904,15]
[359852266,1746373839594,-196.50571413,0.00038904,15]
[359852267,1746373839603,-400.0,0.00038904,15]
[359852268,1746373839612,-400.0,0.00038904,15]
[359852269,1746373839622,-400.0,0.00038904,15]
[359852270,1746373839631,-400.0,0.00038904,15]
[359852271,1746373839641,-423.23247097,0.00038904,15]
[359852272,1746373839651,-400.0,0.00038904,15]
[359852273,1746373839660,-400.0,0.00038904,15]
[359852274,1746373839670,-400.0,0.00038904,15]
[359852276,1746373839680,-400.0,0.00038904,15]
[359852278,1746373839689,-351.21,0.00038904,15]
[359852280,1746373839698,-400.0,0.00038904,15]
[359852282,1746373839707,-400.0,0.00038904,15]
[359852284,1746373839717,-400.0,0.00038904,15]
[359852286,1746373839727,-400.0,0.00038904,15]
[359852288,1746373839737,-400.0,0.00038904,15]
[359852290,1746373839747,-400.0,0.00038904,15]
[359852292,1746373839757,-488.92150454,0.00038904,15]
[359852294,1746373839767,-400.0,0.00038904,15]
[359852297,1746373839777,-400.0,0.00038904,15]
[359852298,1746373839786,-500.0,0.00038904,15]
[359852301,1746373839796,-400.0,0.00038904,15]
[359852303,1746373839806,-443.93406109,0.00038904,15]
[359852305,1746373839815,-400.0,0.00038904,15]
[359852307,1746373839824,-400.0,0.00038904,15]
[359852308,1746373839833,-431.84,0.00038904,15]
[359852310,1746373839843,-400.0,0.00038904,15]
[359852312,1746373839852,-400.0,0.00038904,15]
[359852315,1746373839862,-400.0,0.00038904,15]
[359852317,1746373839871,-400.0,0.00038904,15]
[359852319,1746373839881,-400.0,0.00038904,15]
[359852321,1746373839891,-400.0,0.00038904,15]
[359852323,1746373839901,-460.63,0.00038904,15]
[359852325,1746373839911,-400.0,0.00038904,15]
[359852327,1746373839920,-400.0,0.00038904,15]
[359852329,1746373839930,-438.37,0.00038904,15]
[359852331,1746373839940,-471.70606232,0.00038904,15]
[359852333,1746373839950,-400.0,0.00038904,15]
[359852335,1746373839960,-472.38,0.00038904,15]
[359852337,1746373839970,-400.0,0.00038904,15]
[359852339,1746373839979,-400.0,0.00038904,15]
[359852341,1746373839989,-400.0,0.00038904,15]
[359852343,1746373839999,-475.62,0.00038904,15]
[359852345,1746373840010,-400.0,0.00038904,15]
[359852347,1746373840021,-223.84851424,0.00038904,15]
[359852349,1746373840035,-176.15148576,0.00038904,15]